[Event "December 12 Late 2023"]
[Site "https://www.chess.com"]
[Date "2023.12.12"]
[Round "5"]
[White "Szpar, Milosz"]
[Black "Gubajdullin, Alexei"]
[Result "1/2-1/2"]
[Board "25"]
[TimeControl "180+1"]
[WhiteFideId "1184989"]
[BlackFideId "4141202"]
[WhiteElo "2887"]
[BlackElo "2629"]
[WhiteTeam "POL"]
[BlackTeam "RUS"]
[WhiteClock "0:00:19"]
[BlackClock "0:00:15"]

1. Nf3 {[%clk 0:03:00]}  Nf6 {[%clk 0:02:58]} 2. c4 {[%clk 0:03:00]}  c5 {[%clk 0:02:58]} 3. Nc3 {[%clk 0:02:59]}  d5 {[%clk 0:02:56]} 4. cxd5 {[%clk 0:02:59]}  Nxd5 {[%clk 0:02:56]} 5. e4 {[%clk 0:02:59]}  Nb4 {[%clk 0:02:56]} 6. Bc4 {[%clk 0:02:58]}  Nd3+ {[%clk 0:02:54]} 7. Ke2 {[%clk 0:02:58]}  Nf4+ {[%clk 0:02:54]} 8. Kf1 {[%clk 0:02:58]}  Ne6 {[%clk 0:02:51]} 9. Ne2 {[%clk 0:02:58]}  Nc6 {[%clk 0:02:51]} 10. h4 {[%clk 0:02:57]}  h5 {[%clk 0:02:42]} 11. d3 {[%clk 0:02:24]}  g6 {[%clk 0:02:38]} 12. Be3 {[%clk 0:01:59]}  Bg7 {[%clk 0:02:36]} 13. Qd2 {[%clk 0:01:51]}  O-O {[%clk 0:02:32]} 14. Bh6 {[%clk 0:01:29]}  Ned4 {[%clk 0:02:21]} 15. Bxg7 {[%clk 0:01:23]}  Kxg7 {[%clk 0:02:21]} 16. Nexd4 {[%clk 0:01:09]}  Nxd4 {[%clk 0:02:21]} 17. Nxd4 {[%clk 0:01:03]}  Qxd4 {[%clk 0:02:20]} 18. Rc1 {[%clk 0:01:01]}  Rd8 {[%clk 0:02:13]} 19. Qf4 {[%clk 0:00:54]}  e6 {[%clk 0:02:11]} 20. Qd2 {[%clk 0:00:45]}  Qxe4 {[%clk 0:02:02]} 21. Rh3 {[%clk 0:00:27]}  Qd4 {[%clk 0:01:47]} 22. Rf3 {[%clk 0:00:25]}  Bd7 {[%clk 0:01:44]} 23. Qg5 {[%clk 0:00:23]}  b5 {[%clk 0:01:30]} 24. Bb3 {[%clk 0:00:20]}  Bc6 {[%clk 0:01:27]} 25. Rf4 {[%clk 0:00:18]}  Qxb2 {[%clk 0:01:25]} 26. Re1 {[%clk 0:00:13]}  Rxd3 {[%clk 0:01:10]} 27. Rxf7+ {[%clk 0:00:11]}  Kxf7 {[%clk 0:01:10]} 28. Bxe6+ {[%clk 0:00:10]}  Kg7 {[%clk 0:01:10]} 29. Qe7+ {[%clk 0:00:11]}  Kh8 {[%clk 0:01:10]} 30. Qxc5 {[%clk 0:00:05]}  Qc3 {[%clk 0:01:04]} 31. Qg5 {[%clk 0:00:05]}  Qg7 {[%clk 0:01:02]} 32. Bb3 {[%clk 0:00:05]}  Rd7 {[%clk 0:00:57]} 33. Re6 {[%clk 0:00:05]}  Qa1+ {[%clk 0:00:52]} 34. Re1 {[%clk 0:00:05]}  Qg7 {[%clk 0:00:50]} 35. Re6 {[%clk 0:00:05]}  Rf8 {[%clk 0:00:43]} 36. Kg1 {[%clk 0:00:05]}  Kh7 {[%clk 0:00:25]} 37. Rxc6 {[%clk 0:00:05]}  Re7 {[%clk 0:00:22]} 38. Rc1 {[%clk 0:00:02]}  Rfe8 {[%clk 0:00:20]} 39. Kh2 {[%clk 0:00:02]}  Qe5+ {[%clk 0:00:19]} 40. Qxe5 {[%clk 0:00:02]}  Rxe5 {[%clk 0:00:19]} 41. g3 {[%clk 0:00:02]}  a5 {[%clk 0:00:18]} 42. Kg2 {[%clk 0:00:02]}  a4 {[%clk 0:00:18]} 43. Bc2 {[%clk 0:00:03]}  R5e6 {[%clk 0:00:17]} 44. Bd3 {[%clk 0:00:02]}  Rb6 {[%clk 0:00:17]} 45. a3 {[%clk 0:00:02]}  Re7 {[%clk 0:00:17]} 46. Rc5 {[%clk 0:00:02]}  Kg7 {[%clk 0:00:16]} 47. Bxb5 {[%clk 0:00:02]}  Ra7 {[%clk 0:00:16]} 48. Bd3 {[%clk 0:00:02]}  Rb3 {[%clk 0:00:15]} 49. Be4 {[%clk 0:00:02]}  Rxa3 {[%clk 0:00:14]} 50. Rc6 {[%clk 0:00:02]}  Ra1 {[%clk 0:00:13]} 51. Rxg6+ {[%clk 0:00:03]}  Kf8 {[%clk 0:00:13]} 52. Rh6 {[%clk 0:00:03]}  Ra5 {[%clk 0:00:11]} 53. Rh8+ {[%clk 0:00:03]}  Kg7 {[%clk 0:00:11]} 54. Rh7+ {[%clk 0:00:03]}  Kg8 {[%clk 0:00:11]} 55. Rd7 {[%clk 0:00:02]}  a3 {[%clk 0:00:11]} 56. Bd5+ {[%clk 0:00:03]}  Kf8 {[%clk 0:00:10]} 57. g4 {[%clk 0:00:03]}  Ke8 {[%clk 0:00:09]} 58. Bc6 {[%clk 0:00:03]}  Kf8 {[%clk 0:00:09]} 59. g5 {[%clk 0:00:03]}  a2 {[%clk 0:00:09]} 60. g6 {[%clk 0:00:04]}  Rg1+ {[%clk 0:00:07]} 61. Kxg1 {[%clk 0:00:04]}  a1=Q+ {[%clk 0:00:07]} 62. Kg2 {[%clk 0:00:04]}  Ra7 {[%clk 0:00:07]} 63. g7+ {[%clk 0:00:04]}  Qxg7+ {[%clk 0:00:06]} 64. Rxg7 {[%clk 0:00:04]}  Kxg7 {[%clk 0:00:07]} 65. Be8 {[%clk 0:00:02]}  Kh6 {[%clk 0:00:06]} 66. Kg3 {[%clk 0:00:03]}  Ra3+ {[%clk 0:00:06]} 67. f3 {[%clk 0:00:03]}  Ra8 {[%clk 0:00:06]} 68. Bf7 {[%clk 0:00:03]}  Rf8 {[%clk 0:00:05]} 69. Bc4 {[%clk 0:00:03]}  Rc8 {[%clk 0:00:05]} 70. Be6 {[%clk 0:00:03]}  Rc6 {[%clk 0:00:05]} 71. Bd5 {[%clk 0:00:03]}  Rd6 {[%clk 0:00:05]} 72. Be4 {[%clk 0:00:04]}  Rd4 {[%clk 0:00:04]} 73. Kf4 {[%clk 0:00:04]}  Rd6 {[%clk 0:00:04]} 74. Ke5 {[%clk 0:00:04]}  Rd1 {[%clk 0:00:03]} 75. Kf4 {[%clk 0:00:04]}  Rg1 {[%clk 0:00:03]} 76. Bf5 {[%clk 0:00:04]}  Rg7 {[%clk 0:00:02]} 77. Be6 {[%clk 0:00:04]}  Ra7 {[%clk 0:00:02]} 78. Kf5 {[%clk 0:00:04]}  Ra5+ {[%clk 0:00:03]} 79. Kf4 {[%clk 0:00:04]}  Ra4+ {[%clk 0:00:03]} 80. Kg3 {[%clk 0:00:05]}  Ra6 {[%clk 0:00:04]} 81. Bf5 {[%clk 0:00:05]}  Rb6 {[%clk 0:00:04]} 82. Be4 {[%clk 0:00:06]}  Rb4 {[%clk 0:00:04]} 83. Kf4 {[%clk 0:00:06]}  Rb2 {[%clk 0:00:04]} 84. Kg3 {[%clk 0:00:06]}  Kg7 {[%clk 0:00:04]} 85. Bc6 {[%clk 0:00:06]}  Kf6 {[%clk 0:00:04]} 86. Be8 {[%clk 0:00:06]}  Kg7 {[%clk 0:00:03]} 87. Bxh5 {[%clk 0:00:06]}  Kh6 {[%clk 0:00:03]} 88. Bg4 {[%clk 0:00:07]}  Rb4 {[%clk 0:00:04]} 89. f4 {[%clk 0:00:05]}  Rb3+ {[%clk 0:00:04]} 90. Bf3 {[%clk 0:00:06]}  Rb8 {[%clk 0:00:03]} 91. Bg4 {[%clk 0:00:05]}  Rb4 {[%clk 0:00:02]} 92. f5 {[%clk 0:00:04]}  Rb5 {[%clk 0:00:01]} 93. Kf4 {[%clk 0:00:04]}  Rxf5+ {[%clk 0:00:01]} 94. Kxf5 {[%clk 0:00:04]}  Kg7 {[%clk 0:00:01]} 95. Kg5 {[%clk 0:00:04]}  Kh8 {[%clk 0:00:02]} 96. h5 {[%clk 0:00:05]}  Kg7 {[%clk 0:00:03]} 97. h6+ {[%clk 0:00:05]}  Kh8 {[%clk 0:00:04]} 98. Bf5 {[%clk 0:00:04]}  Kg8 {[%clk 0:00:04]} 99. Kf6 {[%clk 0:00:04]}  Kh8 {[%clk 0:00:05]} 100. Ke7 {[%clk 0:00:05]}  Kg8 {[%clk 0:00:05]} 101. Kd6 {[%clk 0:00:06]}  Kh8 {[%clk 0:00:05]} 102. Ke5 {[%clk 0:00:07]}  Kg8 {[%clk 0:00:06]} 103. Kf4 {[%clk 0:00:07]}  Kh8 {[%clk 0:00:06]} 104. Kg5 {[%clk 0:00:08]}  Kg8 {[%clk 0:00:07]} 105. Kh4 {[%clk 0:00:09]}  Kh8 {[%clk 0:00:07]} 106. Kg3 {[%clk 0:00:10]}  Kg8 {[%clk 0:00:08]} 107. Kf2 {[%clk 0:00:11]}  Kh8 {[%clk 0:00:08]} 108. Ke3 {[%clk 0:00:12]}  Kg8 {[%clk 0:00:09]} 109. Kd2 {[%clk 0:00:13]}  Kh8 {[%clk 0:00:10]} 110. Kc3 {[%clk 0:00:14]}  Kg8 {[%clk 0:00:11]} 111. Kd4 {[%clk 0:00:15]}  Kh8 {[%clk 0:00:12]} 112. Kc5 {[%clk 0:00:16]}  Kg8 {[%clk 0:00:12]} 113. Kd6 {[%clk 0:00:16]}  Kh8 {[%clk 0:00:13]} 114. Ke6 {[%clk 0:00:17]}  Kg8 {[%clk 0:00:14]} 115. Kf6 {[%clk 0:00:18]}  Kh8 {[%clk 0:00:15]} 116. h7 {[%clk 0:00:19]} 1/2-1/2

[Event "December 12 Late 2023"]
[Site "https://www.chess.com"]
[Date "2023.12.12"]
[Round "5"]
[White "Golubev, Mikhail"]
[Black "Rodrigue-Lemieux, Shawn"]
[Result "0-1"]
[Board "26"]
[TimeControl "180+1"]
[WhiteFideId "14100983"]
[BlackFideId "2620049"]
[WhiteElo "2624"]
[BlackElo "2886"]
[WhiteTeam "UKR"]
[BlackTeam "CAN"]
[WhiteClock "0:00:38"]
[BlackClock "0:01:34"]

1. e4 {[%clk 0:03:00]}  c5 {[%clk 0:02:57]} 2. Nf3 {[%clk 0:02:58]}  b6 {[%clk 0:02:56]} 3. d4 {[%clk 0:02:56]}  cxd4 {[%clk 0:02:54]} 4. Nxd4 {[%clk 0:02:57]}  Bb7 {[%clk 0:02:52]} 5. Nc3 {[%clk 0:02:51]}  e6 {[%clk 0:02:50]} 6. Bd3 {[%clk 0:02:18]}  Nc6 {[%clk 0:02:47]} 7. Nxc6 {[%clk 0:02:17]}  Bxc6 {[%clk 0:02:48]} 8. O-O {[%clk 0:02:17]}  Ne7 {[%clk 0:02:43]} 9. Re1 {[%clk 0:02:17]}  Ng6 {[%clk 0:02:42]} 10. Qh5 {[%clk 0:02:02]}  Qh4 {[%clk 0:02:35]} 11. Qxh4 {[%clk 0:01:58]}  Nxh4 {[%clk 0:02:35]} 12. Bf4 {[%clk 0:01:36]}  g5 {[%clk 0:02:29]} 13. Be5 {[%clk 0:01:23]}  Rg8 {[%clk 0:02:29]} 14. Nb5 {[%clk 0:01:23]}  Ke7 {[%clk 0:01:53]} 15. Bd6+ {[%clk 0:01:12]}  Kf6 {[%clk 0:01:52]} 16. e5+ {[%clk 0:00:54]}  Kg7 {[%clk 0:01:50]} 17. Be4 {[%clk 0:00:46]}  Bxb5 {[%clk 0:01:43]} 18. Bxa8 {[%clk 0:00:46]}  Bxd6 {[%clk 0:01:43]} 19. exd6 {[%clk 0:00:47]}  Rxa8 {[%clk 0:01:43]} 20. Re5 {[%clk 0:00:47]}  Bc6 {[%clk 0:01:41]} 21. Rxg5+ {[%clk 0:00:48]}  Kf6 {[%clk 0:01:40]} 22. Rg4 {[%clk 0:00:44]}  Nf5 {[%clk 0:01:40]} 23. Rd1 {[%clk 0:00:43]}  b5 {[%clk 0:01:35]} 24. f4 {[%clk 0:00:38]}  Ne3 {[%clk 0:01:34]} 0-1

[Event "December 12 Late 2023"]
[Site "https://www.chess.com"]
[Date "2023.12.12"]
[Round "5"]
[White "Olsen, Filip Boe"]
[Black "Demchenko, Anton"]
[Result "0-1"]
[Board "27"]
[TimeControl "180+1"]
[WhiteFideId "1440640"]
[BlackFideId "4160258"]
[WhiteElo "2619"]
[BlackElo "2880"]
[WhiteTeam "DEN"]
[BlackTeam "SLO"]
[WhiteClock "0:00:00"]
[BlackClock "0:00:06"]

1. c4 {[%clk 0:02:51]}  Nf6 {[%clk 0:02:59]} 2. Nc3 {[%clk 0:02:49]}  d6 {[%clk 0:02:59]} 3. e4 {[%clk 0:02:45]}  e5 {[%clk 0:02:56]} 4. g3 {[%clk 0:02:44]}  g6 {[%clk 0:02:53]} 5. Bg2 {[%clk 0:02:44]}  Bg7 {[%clk 0:02:53]} 6. d3 {[%clk 0:02:45]}  O-O {[%clk 0:02:54]} 7. Nge2 {[%clk 0:02:45]}  c6 {[%clk 0:02:50]} 8. O-O {[%clk 0:02:44]}  a6 {[%clk 0:02:51]} 9. a4 {[%clk 0:02:40]}  a5 {[%clk 0:02:49]} 10. h3 {[%clk 0:02:37]}  Na6 {[%clk 0:02:49]} 11. Be3 {[%clk 0:02:36]}  Nd7 {[%clk 0:02:38]} 12. Kh2 {[%clk 0:02:17]}  Ndc5 {[%clk 0:02:36]} 13. f4 {[%clk 0:02:13]}  Qe7 {[%clk 0:02:34]} 14. f5 {[%clk 0:02:10]}  Nb4 {[%clk 0:02:25]} 15. Nc1 {[%clk 0:02:08]}  Bd7 {[%clk 0:02:07]} 16. g4 {[%clk 0:02:07]}  Bf6 {[%clk 0:01:30]} 17. Qd2 {[%clk 0:02:05]}  g5 {[%clk 0:01:30]} 18. h4 {[%clk 0:01:53]}  h6 {[%clk 0:01:30]} 19. Rh1 {[%clk 0:01:51]}  Kg7 {[%clk 0:01:25]} 20. Bf3 {[%clk 0:01:47]}  Rh8 {[%clk 0:01:25]} 21. Rg1 {[%clk 0:01:28]}  gxh4 {[%clk 0:01:06]} 22. g5 {[%clk 0:01:25]}  hxg5 {[%clk 0:01:06]} 23. Bxg5 {[%clk 0:01:23]}  Bxg5 {[%clk 0:00:55]} 24. Rxg5+ {[%clk 0:01:24]}  Kf8 {[%clk 0:00:55]} 25. Rg1 {[%clk 0:01:08]}  Qf6 {[%clk 0:00:54]} 26. N3a2 {[%clk 0:00:28]}  Qh6 {[%clk 0:00:52]} 27. Qxh6+ {[%clk 0:00:25]}  Rxh6 {[%clk 0:00:53]} 28. Nxb4 {[%clk 0:00:19]}  axb4 {[%clk 0:00:54]} 29. b3 {[%clk 0:00:20]}  Ke7 {[%clk 0:00:50]} 30. Ra2 {[%clk 0:00:20]}  Rhh8 {[%clk 0:00:42]} 31. Rag2 {[%clk 0:00:19]}  b5 {[%clk 0:00:43]} 32. axb5 {[%clk 0:00:13]}  cxb5 {[%clk 0:00:43]} 33. f6+ {[%clk 0:00:14]}  Kxf6 {[%clk 0:00:41]} 34. Rf2 {[%clk 0:00:14]}  Ke7 {[%clk 0:00:41]} 35. Rg7 {[%clk 0:00:14]}  Kf8 {[%clk 0:00:33]} 36. Rg1 {[%clk 0:00:12]}  bxc4 {[%clk 0:00:31]} 37. dxc4 {[%clk 0:00:12]}  Ke7 {[%clk 0:00:30]} 38. Rgf1 {[%clk 0:00:12]}  Be6 {[%clk 0:00:28]} 39. Bg4 {[%clk 0:00:12]}  Nxe4 {[%clk 0:00:17]} 40. Rf3 {[%clk 0:00:12]}  Ng5 {[%clk 0:00:13]} 41. R3f2 {[%clk 0:00:01]}  Bxg4 {[%clk 0:00:13]} 42. Nd3 {[%clk 0:00:02]}  f5 {[%clk 0:00:12]} 43. Nxb4 {[%clk 0:00:02]}  e4 {[%clk 0:00:11]} 44. Nd5+ {[%clk 0:00:03]}  Ke6 {[%clk 0:00:08]} 45. Ne3 {[%clk 0:00:04]}  Nf3+ {[%clk 0:00:07]} 46. Kh1 {[%clk 0:00:04]}  h3 {[%clk 0:00:07]} 47. Rd1 {[%clk 0:00:03]}  Ra3 {[%clk 0:00:07]} 48. Re2 {[%clk 0:00:02]}  Rxb3 {[%clk 0:00:07]} 49. Nxg4 {[%clk 0:00:03]}  fxg4 {[%clk 0:00:07]} 50. Rxe4+ {[%clk 0:00:04]}  Kf5 {[%clk 0:00:08]} 51. Re2 {[%clk 0:00:04]}  Rhb8 {[%clk 0:00:07]} 52. c5 {[%clk 0:00:00]}  Rb1 {[%clk 0:00:06]} 0-1

[Event "December 12 Late 2023"]
[Site "https://www.chess.com"]
[Date "2023.12.12"]
[Round "5"]
[White "Holt, Conrad"]
[Black "Play, Gilles"]
[Result "1-0"]
[Board "33"]
[TimeControl "180+1"]
[WhiteFideId "2034387"]
[BlackFideId "45130892"]
[WhiteElo "2804"]
[BlackElo "2568"]
[WhiteTeam "USA"]
[BlackTeam "FRA"]
[WhiteClock "0:01:32"]
[BlackClock "0:01:32"]

1. d4 {[%clk 0:03:00]}  d5 {[%clk 0:02:56]} 2. c4 {[%clk 0:03:01]}  Nf6 {[%clk 0:02:56]} 3. cxd5 {[%clk 0:03:00]}  Nxd5 {[%clk 0:02:57]} 4. e4 {[%clk 0:03:00]}  Nf6 {[%clk 0:02:58]} 5. e5 {[%clk 0:02:57]}  Nd5 {[%clk 0:02:57]} 6. Nc3 {[%clk 0:02:55]}  Bf5 {[%clk 0:02:56]} 7. g4 {[%clk 0:02:42]}  Nxc3 {[%clk 0:02:42]} 8. bxc3 {[%clk 0:02:40]}  Be4 {[%clk 0:02:42]} 9. f3 {[%clk 0:02:36]}  Bc6 {[%clk 0:02:39]} 10. e6 {[%clk 0:02:34]}  fxe6 {[%clk 0:02:34]} 11. Nh3 {[%clk 0:02:24]}  g6 {[%clk 0:02:23]} 12. Ng5 {[%clk 0:02:22]}  Qd6 {[%clk 0:02:19]} 13. Bc4 {[%clk 0:02:19]}  Bd5 {[%clk 0:02:11]} 14. Qe2 {[%clk 0:02:15]}  Nc6 {[%clk 0:02:06]} 15. Nxe6 {[%clk 0:02:10]}  Kd7 {[%clk 0:01:56]} 16. Nc5+ {[%clk 0:02:08]}  Kc8 {[%clk 0:01:55]} 17. Nxb7 {[%clk 0:01:39]}  Qd7 {[%clk 0:01:38]} 18. Ba6 {[%clk 0:01:33]}  Kb8 {[%clk 0:01:32]} 19. Nc5 {[%clk 0:01:32]} 1-0

[Event "December 12 Late 2023"]
[Site "https://www.chess.com"]
[Date "2023.12.12"]
[Round "5"]
[White "Atakhan, Abtin"]
[Black "Osmak, Yuliia"]
[Result "0-1"]
[Board "38"]
[TimeControl "180+1"]
[WhiteFideId "22502203"]
[BlackFideId "14101602"]
[WhiteElo "2761"]
[BlackElo "2535"]
[WhiteTeam "IRI"]
[BlackTeam "UKR"]
[WhiteClock "0:00:08"]
[BlackClock "0:00:40"]

1. c4 {[%clk 0:03:00]}  e5 {[%clk 0:02:58]} 2. Nc3 {[%clk 0:03:00]}  Bb4 {[%clk 0:02:57]} 3. Nd5 {[%clk 0:03:00]}  Be7 {[%clk 0:02:55]} 4. d4 {[%clk 0:02:55]}  exd4 {[%clk 0:02:53]} 5. Qxd4 {[%clk 0:02:53]}  Nf6 {[%clk 0:02:53]} 6. Nxe7 {[%clk 0:02:50]}  Qxe7 {[%clk 0:02:52]} 7. Bg5 {[%clk 0:02:44]}  Nc6 {[%clk 0:02:52]} 8. Bxf6 {[%clk 0:02:26]}  Nxd4 {[%clk 0:02:43]} 9. Bxe7 {[%clk 0:02:26]}  Kxe7 {[%clk 0:02:42]} 10. O-O-O {[%clk 0:02:23]}  Nc6 {[%clk 0:02:37]} 11. Nf3 {[%clk 0:02:11]}  d6 {[%clk 0:02:36]} 12. e3 {[%clk 0:02:12]}  Bg4 {[%clk 0:02:33]} 13. Be2 {[%clk 0:02:11]}  Ne5 {[%clk 0:02:24]} 14. Rd4 {[%clk 0:02:01]}  Bxf3 {[%clk 0:02:21]} 15. gxf3 {[%clk 0:02:01]}  Nc6 {[%clk 0:02:10]} 16. Re4+ {[%clk 0:02:00]}  Kd7 {[%clk 0:02:06]} 17. Rg1 {[%clk 0:01:58]}  g6 {[%clk 0:02:05]} 18. c5 {[%clk 0:01:48]}  Rae8 {[%clk 0:01:56]} 19. Rxe8 {[%clk 0:01:39]}  Rxe8 {[%clk 0:01:54]} 20. Rd1 {[%clk 0:01:35]}  Re5 {[%clk 0:01:48]} 21. cxd6 {[%clk 0:01:33]}  cxd6 {[%clk 0:01:49]} 22. f4 {[%clk 0:01:34]}  Rc5+ {[%clk 0:01:44]} 23. Kb1 {[%clk 0:01:31]}  Ke7 {[%clk 0:01:40]} 24. Bf3 {[%clk 0:01:23]}  Nd8 {[%clk 0:01:23]} 25. b3 {[%clk 0:01:13]}  b6 {[%clk 0:01:22]} 26. Kb2 {[%clk 0:01:13]}  Ne6 {[%clk 0:01:21]} 27. b4 {[%clk 0:01:11]}  Rc7 {[%clk 0:01:12]} 28. a4 {[%clk 0:00:54]}  Ng7 {[%clk 0:01:09]} 29. b5 {[%clk 0:00:41]}  Ne6 {[%clk 0:01:07]} 30. Ra1 {[%clk 0:00:35]}  Rc4 {[%clk 0:00:58]} 31. Bd5 {[%clk 0:00:32]}  Rc5 {[%clk 0:00:54]} 32. Rd1 {[%clk 0:00:23]}  Nc7 {[%clk 0:00:47]} 33. Bf3 {[%clk 0:00:23]}  Ne6 {[%clk 0:00:45]} 34. Kb3 {[%clk 0:00:22]}  g5 {[%clk 0:00:39]} 35. fxg5 {[%clk 0:00:20]}  Rxg5 {[%clk 0:00:40]} 36. Be4 {[%clk 0:00:12]}  Nc5+ {[%clk 0:00:39]} 37. Kb4 {[%clk 0:00:08]}  Nxe4 {[%clk 0:00:40]} 0-1

[Event "December 12 Late 2023"]
[Site "https://www.chess.com"]
[Date "2023.12.12"]
[Round "5"]
[White "Sherman, Raem"]
[Black "Bolourchifard, Farzad"]
[Result "0-1"]
[Board "40"]
[TimeControl "180+1"]
[WhiteFideId "2822288"]
[BlackFideId "12510084"]
[WhiteElo "2534"]
[BlackElo "2735"]
[WhiteTeam "ISR"]
[BlackTeam "IRI"]
[WhiteClock "0:00:11"]
[BlackClock "0:00:13"]

1. e4 {[%clk 0:03:00]}  e5 {[%clk 0:02:58]} 2. Nf3 {[%clk 0:02:59]}  Nc6 {[%clk 0:02:58]} 3. d4 {[%clk 0:03:00]}  exd4 {[%clk 0:02:58]} 4. Nxd4 {[%clk 0:03:01]}  Bc5 {[%clk 0:02:59]} 5. Nb3 {[%clk 0:03:00]}  Bb6 {[%clk 0:02:57]} 6. Nc3 {[%clk 0:03:00]}  d6 {[%clk 0:02:57]} 7. Qe2 {[%clk 0:03:01]}  Nf6 {[%clk 0:02:57]} 8. Be3 {[%clk 0:03:01]}  Be6 {[%clk 0:02:56]} 9. O-O-O {[%clk 0:03:00]}  O-O {[%clk 0:02:56]} 10. h3 {[%clk 0:02:59]}  Re8 {[%clk 0:02:53]} 11. g4 {[%clk 0:02:59]}  Bxb3 {[%clk 0:02:50]} 12. axb3 {[%clk 0:02:55]}  Nxe4 {[%clk 0:02:43]} 13. Nxe4 {[%clk 0:02:54]}  Rxe4 {[%clk 0:02:44]} 14. Bg2 {[%clk 0:02:54]}  Re5 {[%clk 0:02:34]} 15. Qd2 {[%clk 0:02:47]}  Bxe3 {[%clk 0:02:32]} 16. fxe3 {[%clk 0:02:48]}  Qe7 {[%clk 0:02:17]} 17. Rde1 {[%clk 0:02:21]}  Re8 {[%clk 0:02:16]} 18. e4 {[%clk 0:02:10]}  a5 {[%clk 0:02:16]} 19. Rhf1 {[%clk 0:02:07]}  Ra8 {[%clk 0:01:38]} 20. c3 {[%clk 0:01:47]}  a4 {[%clk 0:01:38]} 21. bxa4 {[%clk 0:01:47]}  Rxa4 {[%clk 0:01:39]} 22. Kc2 {[%clk 0:01:43]}  Qe6 {[%clk 0:01:26]} 23. Ra1 {[%clk 0:01:37]}  Ra2 {[%clk 0:01:15]} 24. Rxa2 {[%clk 0:01:21]}  Qxa2 {[%clk 0:01:14]} 25. Qd3 {[%clk 0:01:19]}  Qa4+ {[%clk 0:01:05]} 26. Kb1 {[%clk 0:01:16]}  Qb3 {[%clk 0:00:53]} 27. Rf5 {[%clk 0:01:09]}  g6 {[%clk 0:00:49]} 28. Rxe5 {[%clk 0:01:08]}  Nxe5 {[%clk 0:00:50]} 29. Qe2 {[%clk 0:01:05]}  Kg7 {[%clk 0:00:46]} 30. g5 {[%clk 0:01:04]}  b5 {[%clk 0:00:43]} 31. Qf2 {[%clk 0:01:01]}  Qe6 {[%clk 0:00:31]} 32. Bf1 {[%clk 0:01:01]}  c6 {[%clk 0:00:31]} 33. Be2 {[%clk 0:00:55]}  Nd7 {[%clk 0:00:31]} 34. Qf3 {[%clk 0:00:51]}  Nc5 {[%clk 0:00:30]} 35. Bd3 {[%clk 0:00:48]}  Qe5 {[%clk 0:00:29]} 36. h4 {[%clk 0:00:47]}  Ne6 {[%clk 0:00:24]} 37. Bc2 {[%clk 0:00:43]}  c5 {[%clk 0:00:24]} 38. Bd3 {[%clk 0:00:40]}  c4 {[%clk 0:00:21]} 39. Bf1 {[%clk 0:00:40]}  Nc5 {[%clk 0:00:21]} 40. Bg2 {[%clk 0:00:37]}  Nb3 {[%clk 0:00:16]} 41. Kc2 {[%clk 0:00:35]}  b4 {[%clk 0:00:12]} 42. Qf2 {[%clk 0:00:25]}  bxc3 {[%clk 0:00:11]} 43. bxc3 {[%clk 0:00:26]}  Nc5 {[%clk 0:00:11]} 44. Qf3 {[%clk 0:00:22]}  Nd3 {[%clk 0:00:11]} 45. Qe3 {[%clk 0:00:19]}  Qh2 {[%clk 0:00:10]} 46. Qe2 {[%clk 0:00:18]}  Nf4 {[%clk 0:00:10]} 47. Qxc4 {[%clk 0:00:16]}  Qxg2+ {[%clk 0:00:10]} 48. Kb3 {[%clk 0:00:17]}  Ne6 {[%clk 0:00:05]} 49. Qd5 {[%clk 0:00:17]}  Qg3 {[%clk 0:00:04]} 50. Kb4 {[%clk 0:00:15]}  Nc5 {[%clk 0:00:05]} 51. Qd4+ {[%clk 0:00:14]}  Kg8 {[%clk 0:00:03]} 52. Qf6 {[%clk 0:00:14]}  Nd3+ {[%clk 0:00:04]} 53. Kc4 {[%clk 0:00:13]}  Ne5+ {[%clk 0:00:04]} 54. Kb3 {[%clk 0:00:12]}  Nc6 {[%clk 0:00:04]} 55. h5 {[%clk 0:00:09]}  Qe5 {[%clk 0:00:05]} 56. Qf3 {[%clk 0:00:06]}  Qb5+ {[%clk 0:00:06]} 57. Kc2 {[%clk 0:00:06]}  Qxg5 {[%clk 0:00:07]} 58. hxg6 {[%clk 0:00:06]}  hxg6 {[%clk 0:00:07]} 59. Qd3 {[%clk 0:00:07]}  Qe5 {[%clk 0:00:05]} 60. Qf3 {[%clk 0:00:07]}  Qe6 {[%clk 0:00:05]} 61. Qf4 {[%clk 0:00:07]}  Ne5 {[%clk 0:00:06]} 62. Qg3 {[%clk 0:00:07]}  Kg7 {[%clk 0:00:06]} 63. Qf4 {[%clk 0:00:07]}  Qf6 {[%clk 0:00:06]} 64. Qe3 {[%clk 0:00:08]}  Qf3 {[%clk 0:00:07]} 65. Qd4 {[%clk 0:00:09]}  Qe2+ {[%clk 0:00:06]} 66. Kb3 {[%clk 0:00:09]}  Qb5+ {[%clk 0:00:07]} 67. Kc2 {[%clk 0:00:10]}  Qc6 {[%clk 0:00:08]} 68. Kb3 {[%clk 0:00:09]}  Kf6 {[%clk 0:00:08]} 69. Qf2+ {[%clk 0:00:09]}  Ke6 {[%clk 0:00:09]} 70. Qf4 {[%clk 0:00:09]}  Qc4+ {[%clk 0:00:09]} 71. Kc2 {[%clk 0:00:10]}  Qd3+ {[%clk 0:00:10]} 72. Kb3 {[%clk 0:00:10]}  Qb5+ {[%clk 0:00:10]} 73. Kc2 {[%clk 0:00:11]}  Qe2+ {[%clk 0:00:11]} 74. Kb3 {[%clk 0:00:11]}  d5 {[%clk 0:00:11]} 75. exd5+ {[%clk 0:00:11]}  Kxd5 {[%clk 0:00:12]} 76. Qd4+ {[%clk 0:00:12]}  Ke6 {[%clk 0:00:12]} 77. Qb6+ {[%clk 0:00:13]}  Kf5 {[%clk 0:00:13]} 78. Qc7 {[%clk 0:00:13]}  Qb5+ {[%clk 0:00:12]} 79. Kc2 {[%clk 0:00:14]}  Qc4 {[%clk 0:00:13]} 80. Qd8 {[%clk 0:00:12]}  Ke4 {[%clk 0:00:12]} 81. Qa8+ {[%clk 0:00:11]}  Qd5 {[%clk 0:00:11]} 82. Qa4+ {[%clk 0:00:12]}  Nc4 {[%clk 0:00:11]} 83. Qe8+ {[%clk 0:00:11]}  Ne5 {[%clk 0:00:11]} 84. Qa4+ {[%clk 0:00:11]}  Ke3 {[%clk 0:00:11]} 85. Qa6 {[%clk 0:00:09]}  Qd3+ {[%clk 0:00:11]} 86. Qxd3+ {[%clk 0:00:10]}  Nxd3 {[%clk 0:00:12]} 87. c4 {[%clk 0:00:11]}  f5 {[%clk 0:00:12]} 88. Kc3 {[%clk 0:00:11]}  f4 {[%clk 0:00:13]} 89. c5 {[%clk 0:00:11]}  Nxc5 {[%clk 0:00:13]} 0-1

[Event "December 12 Late 2023"]
[Site "https://www.chess.com"]
[Date "2023.12.12"]
[Round "5"]
[White "Tari, Aryan"]
[Black "Khater, Sherif"]
[Result "1-0"]
[Board "46"]
[TimeControl "180+1"]
[WhiteFideId "1510045"]
[BlackFideId "2034280"]
[WhiteElo "2861"]
[BlackElo "2565"]
[WhiteTeam "NOR"]
[BlackTeam "USA"]
[WhiteClock "0:01:50"]
[BlackClock "0:01:36"]

1. a3 {[%clk 0:03:00]}  a6 {[%clk 0:02:55]} 2. e4 {[%clk 0:03:00]}  c6 {[%clk 0:02:54]} 3. d4 {[%clk 0:03:00]}  d5 {[%clk 0:02:52]} 4. Nc3 {[%clk 0:03:00]}  dxe4 {[%clk 0:02:51]} 5. Nxe4 {[%clk 0:03:01]}  Nf6 {[%clk 0:02:51]} 6. Ng3 {[%clk 0:02:57]}  e5 {[%clk 0:02:44]} 7. Nf3 {[%clk 0:02:44]}  exd4 {[%clk 0:02:42]} 8. Qxd4 {[%clk 0:02:41]}  Qxd4 {[%clk 0:02:42]} 9. Nxd4 {[%clk 0:02:42]}  Bc5 {[%clk 0:02:38]} 10. Ndf5 {[%clk 0:02:33]}  O-O {[%clk 0:02:37]} 11. Be3 {[%clk 0:02:33]}  Re8 {[%clk 0:02:35]} 12. O-O-O {[%clk 0:02:31]}  Bxf5 {[%clk 0:02:31]} 13. Nxf5 {[%clk 0:02:19]}  Bxe3+ {[%clk 0:02:30]} 14. Nxe3 {[%clk 0:02:19]}  Nbd7 {[%clk 0:02:29]} 15. Bc4 {[%clk 0:02:16]}  Ne5 {[%clk 0:02:28]} 16. Bb3 {[%clk 0:02:11]}  Neg4 {[%clk 0:02:25]} 17. Nxg4 {[%clk 0:02:08]}  Nxg4 {[%clk 0:02:26]} 18. Rd7 {[%clk 0:02:07]}  Rf8 {[%clk 0:02:17]} 19. Rxb7 {[%clk 0:02:04]}  a5 {[%clk 0:01:48]} 20. Re1 {[%clk 0:01:58]}  a4 {[%clk 0:01:47]} 21. Bc4 {[%clk 0:01:58]}  Rab8 {[%clk 0:01:39]} 22. Bxf7+ {[%clk 0:01:52]}  Kh8 {[%clk 0:01:39]} 23. Rxb8 {[%clk 0:01:50]}  Rxb8 {[%clk 0:01:39]} 24. Re8+ {[%clk 0:01:49]}  Rxe8 {[%clk 0:01:36]} 25. Bxe8 {[%clk 0:01:50]} 1-0